fUST/lending_fUST_20240325
["ID","MTS","AMOUNT","RATE_DAILY","PERIOD"]
[320355460,1711321846796,-1627.12,0.00060273,120]
[320355461,1711321846805,-1627.12,0.00060273,120]
[320355462,1711321846814,-1627.12,0.00060273,120]
[320355463,1711321846824,-1627.12,0.00060273,120]
[320355465,1711321846833,-1627.12,0.00060273,120]
[320355467,1711321846841,-1627.12,0.00060273,120]
[320355469,1711321846850,-1627.12,0.00060273,120]
[320355470,1711321846859,-1627.12,0.00060273,120]
[320355471,1711321846868,-1627.12,0.00060273,120]
[320355472,1711321846877,-1627.12,0.00060273,120]
[320355473,1711321846886,-1627.12,0.00060273,120]
[320355474,1711321846895,-1627.12,0.00060273,120]
[320355475,1711321846904,-1627.12,0.00060273,120]
[320355476,1711321846914,-1627.12,0.00060273,120]
[320355477,1711321846923,-1627.12,0.00060273,120]
[320355478,1711321846932,-1627.12,0.00060273,120]
[320355479,1711321846941,-1627.12,0.00060273,120]
[320355480,1711321846950,-1627.12,0.00060273,120]
[320355481,1711321846960,-1627.12,0.00060273,120]
[320355482,1711321846969,-1627.12,0.00060273,120]
[320355483,1711321846978,-1627.12,0.00060273,120]
[320355484,1711321846988,-1627.12,0.00060273,120]
[320355485,1711321846997,-1627.12,0.00060273,120]
[320355487,1711321847006,-1627.22699478,0.00060273,120]
[320355488,1711321847016,-1638.97,0.00060273,120]
[320355490,1711321847025,-1638.97,0.00060273,120]
[320355491,1711321847034,-1638.97,0.00060273,120]
[320355492,1711321847044,-1638.97,0.00060273,120]
[320355493,1711321847054,-1638.97,0.00060273,120]
[320355494,1711321847063,-1638.97,0.00060273,120]
[320355495,1711321847073,-1638.97,0.00060273,120]
[320355496,1711321847083,-1638.97,0.00060273,120]
[320355497,1711321847092,-1638.97,0.00060273,120]
[320355498,1711321847102,-1638.97,0.00060273,120]
[320355499,1711321847112,-1638.97,0.00060273,120]
[320355500,1711321847121,-1638.97,0.00060273,120]
[320355501,1711321847130,-1638.97,0.00060273,120]
[320355502,1711321847139,-1638.97,0.00060273,120]
[320355503,1711321847149,-1638.97,0.00060273,120]
[320355504,1711321847158,-1638.97,0.00060273,120]
[320355505,1711321847167,-1638.97,0.00060273,120]
[320355506,1711321847176,-1638.97,0.00060273,120]
[320355507,1711321847186,-1638.97,0.00060273,120]
[320355508,1711321847195,-1638.97,0.00060273,120]
[320355509,1711321847204,-1638.97,0.00060273,120]
[320355510,1711321847214,-1638.97,0.00060273,120]
[320355511,1711321847224,-1638.97,0.00060273,120]
[320355512,1711321847234,-1639.12268013,0.00060273,120]
[320355513,1711321847243,-500.0,0.00060273,120]
[320355514,1711321847252,-500.0,0.00060273,120]
[320355515,1711321847261,-1750.94,0.00060273,120]
[320355516,1711321847271,-500.0,0.00060273,120]
[320355517,1711321847280,-184.07743169,0.00060273,120]
[320355518,1711321847292,-500.0,0.00060273,120]
[320355519,1711321847301,-500.0,0.00060273,120]
[320355520,1711321847311,-500.0,0.00060273,120]
[320355521,1711321847321,-500.0,0.00060273,120]
[320355522,1711321847331,-500.0,0.00060273,120]
[320355523,1711321847340,-500.0,0.00060273,120]
[320355524,1711321847350,-500.0,0.00060273,120]
[320355525,1711321847359,-500.0,0.00060273,120]
[320355526,1711321847369,-500.0,0.00060273,120]
[320355527,1711321847378,-500.0,0.00060273,120]
[320355528,1711321847387,-500.0,0.00060273,30]
[320355529,1711321847397,-500.0,0.00060273,120]
[320355530,1711321847406,-500.0,0.00060273,120]
[320355531,1711321847415,-520.99,0.00060273,120]
[320355532,1711321847424,-500.0,0.00060273,120]
[320355533,1711321847433,-1150.53,0.00060273,120]
[320355534,1711321847442,-500.0,0.00060273,120]
[320355535,1711321847451,-1110.17,0.00060273,120]
[320355536,1711321847461,-183.26950145,0.00060273,120]
[320355537,1711321847470,-500.0,0.00060273,120]
[320355538,1711321847479,-500.0,0.00060273,120]
[320355539,1711321847489,-500.0,0.00060273,120]
[320355540,1711321847498,-4090.58,0.00060273,120]
[320355541,1711321847507,-1049.91,0.00060273,120]
[320355542,1711321847516,-1972.22,0.00060273,2]
[320355543,1711321847525,-572.26,0.00060273,120]
[320355544,1711321847534,-500.0,0.00060273,120]
[320355545,1711321847544,-500.0,0.00060273,120]
[320355546,1711321847554,-500.0,0.00060273,120]
[320355547,1711321847564,-10552.02,0.00060273,120]
[320355548,1711321847573,-1500.0,0.00060273,120]
[320355549,1711321847582,-6944.75,0.00060273,120]
[320355550,1711321847592,-500.0,0.00060273,120]
[320355551,1711321847601,-222.8820941,0.00060273,120]
[320355552,1711321847610,-2216.88,0.00060273,120]
[320355553,1711321847619,-500.0,0.00060273,120]
[320355554,1711321847630,-1142.69,0.00060273,120]
[320355555,1711321847640,-500.0,0.00060273,120]
[320355556,1711321847651,-1663.74,0.00060273,120]
[320355557,1711321847662,-840.16,0.00060273,120]
[320355558,1711321847672,-500.0,0.00060273,120]
[320355559,1711321847681,-500.0,0.00060273,120]
[320355560,1711321847692,-1308.08,0.00060273,120]
[320355561,1711321847701,-500.0,0.00060273,120]
[320355562,1711321847711,-2135.49,0.00060273,120]
[320355563,1711321847721,-2518.32,0.00060273,120]
[320355564,1711321847731,-1110.89,0.00060273,120]
[320355565,1711321847741,-500.0,0.00060273,120]
[320355566,1711321847751,-507.61,0.00060273,120]
[320355567,1711321847761,-500.0,0.00060273,120]
[320355568,1711321847770,-500.0,0.00060273,120]
[320355569,1711321847780,-1203.69,0.00060273,120]
[320355570,1711321847791,-538.71,0.00060273,120]
[320355571,1711321847799,-500.0,0.00060273,120]
[320355572,1711321847808,-500.0,0.00060273,120]
[320355573,1711321847817,-5963.39,0.00060273,120]
[320355574,1711321847826,-1183.68,0.00060273,120]
[320355575,1711321847835,-151.0,0.00060273,120]
[320355576,1711321847845,-12621.29,0.00060273,90]
[320355577,1711321847854,-706.35,0.00060273,120]
[320355578,1711321847863,-1785.38,0.00060273,120]
[320355579,1711321847873,-500.0,0.00060273,120]
[320355580,1711321847882,-500.0,0.00060273,120]
[320355581,1711321847891,-895.79,0.00060273,120]
[320355582,1711321847900,-2557.14,0.00060273,21]
[320355583,1711321847909,-500.0,0.00060273,120]
[320355584,1711321847918,-500.0,0.00060273,120]
[320355585,1711321847928,-500.0,0.00060273,120]
[320355586,1711321847937,-1143.65,0.00060273,120]
[320355587,1711321847947,-1030.74,0.00060273,120]
[320355588,1711321847956,-1323.8,0.00060273,120]
[320355589,1711321847965,-302.773801,0.00060273,120]
[320355590,1711321847975,-500.0,0.00060273,120]
[320355591,1711321847984,-505.54,0.00060273,120]
[320355592,1711321847994,-302.773801,0.00060273,120]
[320355593,1711321848004,-500.0,0.00060273,120]
[320355594,1711321848014,-939.4,0.00060273,120]
[320355595,1711321848024,-2390.57,0.00060273,120]
[320355596,1711321848033,-500.0,0.00060273,120]
[320355597,1711321848044,-500.0,0.00060273,120]
[320355598,1711321848054,-757.63,0.00060273,120]
[320355599,1711321848063,-9790.28,0.00060273,120]
[320355600,1711321848073,-500.0,0.00060273,60]
[320355601,1711321848083,-921.83,0.00060273,120]
[320355602,1711321848094,-1699.85,0.000611,120]
[320355603,1711321848104,-375.002633,0.00061643,120]
[320355604,1711321848113,-1771.32547101,0.00062383,4]
[320355605,1711321848122,-1000.0,0.00062514,30]
[320355606,1711321848132,-150.4240123,0.00062911,120]
[320355607,1711321848141,-154.04743731,0.00062913,120]
[320355608,1711321848151,-154.04743731,0.00062913,120]
[320355609,1711321848160,-154.04743731,0.00062913,120]
[320355610,1711321848169,-154.04743731,0.00062913,120]
[320355611,1711321848179,-154.04743731,0.00062913,120]
[320355612,1711321848188,-154.04743731,0.00062913,120]
[320355613,1711321848198,-154.04743731,0.00062913,120]
[320355614,1711321848207,-154.04743731,0.00062913,120]
[320355615,1711321848217,-154.04743731,0.00062913,120]
[320355616,1711321848229,-154.04743731,0.00062913,120]
[320355617,1711321848238,-154.04743731,0.00062913,120]
[320355618,1711321848248,-154.04743731,0.00062913,120]
[320355619,1711321848257,-154.04743731,0.00062913,120]
[320355620,1711321848266,-154.04743731,0.00062913,120]
[320355621,1711321848276,-154.54,0.00062913,120]
[320355622,1711321848288,-344.58794073,0.00062913,120]
[320355623,1711321848297,-344.58794073,0.00062913,120]
[320355624,1711321848306,-344.58794073,0.00062913,120]
[320355625,1711321848315,-344.58794073,0.00062913,120]
[320355626,1711321848324,-344.58794073,0.00062913,120]
[320355627,1711321848333,-344.58794073,0.00062913,120]
[320355628,1711321848342,-344.58794073,0.00062913,120]
[320355629,1711321848352,-27.12916771,0.00062913,120]
[320355633,1711322968107,-964.71299315,0.0002978,2]
[320355634,1711322968127,-637.23564966,0.00031269,2]
[320355635,1711322968148,-304.85391007,0.00046489,15]
[320355636,1711322968168,-150.55595749,0.00048899,30]
[320355637,1711322968188,-52075.5297205,0.00050163,2]
[320355638,1711322968208,-166.666666,0.00050538,2]
[320355639,1711322968228,-675.7361777,0.00050677,2]
[320355640,1711322968247,-338.283305,0.00050768,2]
[320355641,1711322968267,-200.0,0.00051503,2]
[320355642,1711322968287,-180.0,0.00051602,2]
[320355643,1711322968307,-172.92189,0.00051645,2]
[320355644,1711322968326,-1173.229722,0.00051751,2]
[320355645,1711322975679,252.55985033,0.00025,9]
[320355646,1711322975703,451.08702699,0.00025,9]
[320355693,1711323031886,-173.68171767,0.00048063,2]
[320355696,1711323031907,-996.6269453,0.00051799,2]
[320355698,1711323031918,-1624.70869645,0.00051981,2]
[320355701,1711323031931,-371.206,0.00051981,2]
[320355710,1711323032014,-8947.89304972,0.00051981,2]
[320355713,1711323032027,-7230.37285136,0.00051981,2]
[320355789,1711323037972,-6725.81940247,0.00051981,2]
[320355791,1711323037982,-171.36253761,0.00052568,2]
[320355793,1711323037992,-166.666666,0.00052835,2]
[320355795,1711323038001,-173.68171767,0.00053063,2]
[320355797,1711323038012,-174.289409,0.00053416,2]
[320355799,1711323038022,-1590.03368505,0.0005358,90]
[320355801,1711323038031,-500.0,0.00053599,120]
[320355803,1711323038040,-500.0,0.00053599,120]
[320355804,1711323038049,-442.62306595,0.00053599,120]
[320355806,1711323038058,-25934.10934824,0.000536,120]
[320355817,1711323038165,-18188.61450793,0.000536,120]
[320355889,1711323044975,-5708.67614382,0.000536,120]
[320355891,1711323044984,-171.36253759,0.00054154,2]
[320355893,1711323044994,-900.0,0.0005418,110]
[320355895,1711323045003,-500.0,0.00054693,120]
[320355897,1711323045013,-500.0,0.00054693,120]
[320355899,1711323045022,-603.70308766,0.00054693,120]
[320355901,1711323045031,-155.0341075,0.00054792,4]
[320355903,1711323045041,-500.0,0.00054793,30]
[320355905,1711323045050,-230.2359354,0.00054793,120]
[320355907,1711323045059,-272.57528783,0.00054793,120]
[320355909,1711323045068,-2278.04605089,0.00054794,61]
[320355911,1711323045077,-501.94860738,0.00054794,120]
[320355913,1711323045086,-400.66631926,0.00054794,120]
[320355915,1711323045097,-500.0,0.00054794,120]
[320355917,1711323045107,-500.0,0.00054794,120]
[320355919,1711323045116,-500.80025417,0.00054794,120]
[320355921,1711323045125,-500.0,0.00054794,120]
[320355923,1711323045135,-198.66254847,0.00054794,120]
[320355925,1711323045144,-500.0,0.00054794,120]
[320355927,1711323045153,-500.0,0.00054794,120]
[320355929,1711323045163,-500.0,0.00054794,120]
[320355931,1711323045172,-500.0,0.00054794,120]
[320355933,1711323045182,-500.0,0.00054794,120]
[320355935,1711323045192,-500.0,0.00054794,120]
[320355937,1711323045202,-500.0,0.00054794,120]
[320355939,1711323045213,-186.03014707,0.00054794,120]
[320355941,1711323045223,-500.0,0.00054794,120]
[320355943,1711323045232,-500.0,0.00054794,120]
[320355945,1711323045241,-500.0,0.00054794,120]
[320355947,1711323045250,-500.0,0.00054794,120]
[320355949,1711323045259,-500.0,0.00054794,120]
[320355951,1711323045268,-500.0,0.00054794,120]
[320355953,1711323045277,-500.0,0.00054794,120]
[320355955,1711323045287,-503.11482721,0.00054794,120]
[320355957,1711323045296,-500.0,0.00054794,120]
[320355959,1711323045305,-500.0,0.00054794,120]
[320355961,1711323045314,-500.0,0.00054794,120]
[320355963,1711323045322,-500.0,0.00054794,120]
[320355965,1711323045331,-500.0,0.00054794,120]
[320355967,1711323045342,-502.77425586,0.00054794,120]
[320355969,1711323045351,-502.9086314,0.00054794,120]
[320355971,1711323045361,-500.0,0.00054794,120]
[320355974,1711323045370,-510.86186813,0.00054794,120]
[320355976,1711323045380,-500.0,0.00054794,120]
[320355979,1711323045389,-500.0,0.00054794,120]
[320355981,1711323045398,-500.0,0.00054794,120]
[320355983,1711323045407,-500.0,0.00054794,120]
[320355985,1711323045416,-500.0,0.00054794,120]
[320355987,1711323045426,-500.0,0.00054794,120]
[320355989,1711323045435,-500.0,0.00054794,120]
[320355992,1711323045444,-500.0,0.00054794,120]
[320355995,1711323045454,-500.0,0.00054794,120]
[320355997,1711323045464,-500.0,0.00054794,120]
[320355999,1711323045473,-281.39535896,0.00054794,120]
[320356000,1711323045483,-500.0,0.00054794,120]
[320356001,1711323045493,-500.0,0.00054794,120]
[320356002,1711323045503,-502.68578755,0.00054794,120]
[320356003,1711323045512,-500.0,0.00054794,120]
[320356005,1711323045522,-504.99892821,0.00054794,7]
[320356006,1711323045530,-500.0,0.00054794,120]
[320356007,1711323045539,-501.5230851,0.00054794,120]
[320356008,1711323045547,-502.53632239,0.00054794,120]
[320356009,1711323045556,-500.0,0.00054794,120]
[320356010,1711323045565,-500.0,0.00054794,120]
[320356012,1711323045572,-500.90329408,0.00054794,120]
[320356013,1711323045582,-500.0,0.00054794,120]
[320356014,1711323045590,-504.42307242,0.00054794,120]
[320356015,1711323045600,-500.0,0.00054794,120]
[320356016,1711323045610,-503.71653389,0.00054794,120]
[320356017,1711323045618,-500.0,0.00054794,120]
[320356018,1711323045627,-500.0,0.00054794,120]
[320356019,1711323045636,-500.0,0.00054794,120]
[320356020,1711323045646,-500.0,0.00054794,120]
[320356021,1711323045654,-500.87410191,0.00054794,2]
[320356022,1711323045663,-500.0,0.00054794,120]
[320356023,1711323045672,-500.0,0.00054794,120]
[320356024,1711323045680,-500.0,0.00054794,120]
[320356025,1711323045688,-500.0,0.00054794,120]
[320356026,1711323045697,-500.0,0.00054794,120]
[320356027,1711323045707,-506.54556422,0.00054794,120]
[320356028,1711323045716,-500.0,0.00054794,120]
[320356029,1711323045725,-500.0,0.00054794,120]
[320356030,1711323045734,-500.0,0.00054794,120]
[320356031,1711323045744,-161.19009587,0.00054794,120]
[320356032,1711323045754,-500.0,0.00054794,120]
[320356033,1711323045763,-500.0,0.00054794,120]
[320356035,1711323045772,-500.0,0.00054794,120]
[320356037,1711323045781,-513.60848751,0.00054794,120]
[320356038,1711323045791,-500.45649525,0.00054794,120]
[320356039,1711323045800,-500.51053719,0.00054794,120]
[320356040,1711323045809,-500.0,0.00054794,120]
[320356041,1711323045818,-500.0,0.00054794,120]
[320356042,1711323045828,-500.0,0.00054794,120]
[320356043,1711323045839,-500.0,0.00054794,120]
[320356044,1711323045851,-500.0,0.00054794,120]
[320356045,1711323045860,-500.0,0.00054794,120]
[320356046,1711323045870,-500.0,0.00054794,120]
[320356048,1711323045879,-500.0,0.00054794,120]
[320356050,1711323045889,-501.20607641,0.00054794,120]
[320356051,1711323045898,-500.0,0.00054794,120]
[320356052,1711323045907,-500.0,0.00054794,120]
[320356053,1711323045916,-501.68993117,0.00054794,120]
[320356054,1711323045925,-500.0,0.00054794,120]
[320356055,1711323045935,-500.37493577,0.00054794,120]
[320356056,1711323045945,-500.0,0.00054794,120]
[320356057,1711323045954,-500.0,0.00054794,120]
[320356058,1711323045963,-502.81102058,0.00054794,120]
[320356059,1711323045976,-500.0,0.00054794,120]
[320356060,1711323045985,-580.58554407,0.00054794,120]
[320356061,1711323045994,-500.0,0.00054794,120]
[320356062,1711323046005,-500.85805219,0.00054794,120]
[320356063,1711323046014,-500.0,0.00054794,120]
[320356064,1711323046024,-501.72093903,0.00054794,120]
[320356065,1711323046033,-500.0,0.00054794,120]
[320356066,1711323046043,-500.0,0.00054794,120]
[320356067,1711323046052,-502.57409045,0.00054794,120]
[320356068,1711323046061,-571.40481334,0.00054794,120]
[320356069,1711323046072,-465.92615469,0.00054794,120]
[320356070,1711323046081,-500.0,0.00054794,120]
[320356071,1711323046093,-500.0,0.00054794,120]
[320356072,1711323046102,-360.31688001,0.00054794,120]
[320356074,1711323046111,-310.32741873,0.00054794,120]
[320356076,1711323046120,-1768.82,0.00054794,120]
[320356078,1711323046129,-500.0,0.00054794,120]
[320356079,1711323046138,-179.73360365,0.00054794,3]
[320356080,1711323046148,-500.0,0.00054794,120]
[320356082,1711323046158,-500.0,0.00054794,120]
[320356084,1711323046167,-502.85017531,0.00054794,120]
[320356085,1711323046176,-482.66387018,0.00054794,120]
[320356086,1711323046185,-503.34503174,0.00054794,120]
[320356088,1711323046196,-505.82,0.00054794,120]
[320356089,1711323046206,-500.0,0.00054794,120]
[320356090,1711323046217,-500.0,0.00054794,120]
[320356091,1711323046226,-503.45673578,0.00054794,30]
[320356092,1711323046235,-500.0,0.00054794,120]
[320356093,1711323046244,-500.0,0.00054794,120]
[320356094,1711323046254,-500.0,0.00054794,120]
[320356095,1711323046263,-502.91957853,0.00054794,120]
[320356096,1711323046273,-500.0,0.00054794,120]
[320356097,1711323046284,-500.0,0.00054794,120]
[320356098,1711323046294,-500.0,0.00054794,120]
[320356099,1711323046304,-500.0,0.00054794,120]
[320356100,1711323046314,-500.0,0.00054794,120]
[320356101,1711323046323,-500.0,0.00054794,120]
[320356102,1711323046332,-500.0,0.00054794,120]
[320356103,1711323046343,-500.0,0.00054794,120]
[320356104,1711323046353,-500.0,0.00054794,120]
[320356105,1711323046362,-500.0,0.00054794,120]
[320356106,1711323046372,-500.0,0.00054794,120]
[320356107,1711323046382,-500.0,0.00054794,120]
[320356108,1711323046392,-500.0,0.00054794,120]
[320356109,1711323046402,-502.36444325,0.00054794,120]
[320356110,1711323046411,-500.0,0.00054794,120]
[320356111,1711323046421,-500.0,0.00054794,120]
[320356112,1711323046431,-500.0,0.00054794,120]
[320356113,1711323046441,-500.0,0.00054794,120]
[320356114,1711323046452,-501.85363474,0.00054794,120]
[320356115,1711323046461,-500.0,0.00054794,120]
[320356116,1711323046471,-500.0,0.00054794,120]
[320356117,1711323046480,-500.0,0.00054794,120]
[320356118,1711323046492,-500.0,0.00054794,120]
[320356119,1711323046503,-500.51950011,0.00054794,120]
[320356120,1711323046514,-501.1663397,0.00054794,120]
[320356121,1711323046524,-500.0,0.00054794,120]
[320356122,1711323046534,-554.48107959,0.00054794,120]
[320356123,1711323046543,-500.0,0.00054794,120]
[320356124,1711323046553,-500.0,0.00054794,120]
[320356125,1711323046563,-502.13416177,0.00054794,120]
[320356126,1711323046572,-500.0,0.00054794,120]
[320356127,1711323046581,-500.0,0.00054794,120]
[320356128,1711323046591,-500.0,0.00054794,120]
[320356129,1711323046601,-500.0,0.00054794,120]
[320356130,1711323046610,-501.0036967,0.00054794,120]
[320356131,1711323046621,-502.83083714,0.00054794,120]
[320356132,1711323046630,-500.0,0.00054794,120]
[320356133,1711323046640,-500.0,0.00054794,120]
[320356134,1711323046649,-500.0,0.00054794,120]
[320356135,1711323046660,-502.24272086,0.00054794,120]
[320356136,1711323046670,-500.0,0.00054794,120]
[320356137,1711323046680,-500.0,0.00054794,120]
[320356138,1711323046690,-500.0,0.00054794,120]
[320356139,1711323046700,-500.0,0.00054794,120]
[320356140,1711323046710,-500.0,0.00054794,120]
[320356141,1711323046720,-500.94527809,0.00054794,120]
[320356142,1711323046730,-500.0,0.00054794,120]
[320356143,1711323046739,-500.0,0.00054794,120]
[320356144,1711323046749,-500.0,0.00054794,120]
[320356145,1711323046759,-500.0,0.00054794,120]
[320356146,1711323046768,-500.0,0.00054794,120]
[320356147,1711323046778,-500.0,0.00054794,120]
[320356148,1711323046787,-500.0,0.00054794,120]
[320356149,1711323046796,-151.0,0.00054794,120]
[320356150,1711323046809,-1007.52,0.00054794,120]
[320356151,1711323046821,-1007.52,0.00054794,120]
[320356152,1711323046833,-1007.52,0.00054794,120]
[320356153,1711323046843,-1007.52,0.00054794,120]
[320356154,1711323046854,-1007.52,0.00054794,120]
[320356155,1711323046864,-1007.52,0.00054794,120]
[320356156,1711323046873,-500.0,0.00054794,120]
[320356157,1711323046883,-1007.52,0.00054794,120]
[320356158,1711323046893,-502.63585611,0.00054794,120]
[320356159,1711323046903,-1007.52,0.00054794,120]
[320356160,1711323046912,-1007.52,0.00054794,120]
[320356161,1711323046921,-1007.52,0.00054794,120]
[320356162,1711323046931,-500.0,0.00054794,120]
[320356163,1711323046940,-1007.52,0.00054794,120]
[320356164,1711323046950,-500.0,0.00054794,120]
[320356165,1711323046959,-500.0,0.00054794,120]
[320356166,1711323046969,-500.0,0.00054794,120]
[320356167,1711323046979,-500.0,0.00054794,60]
[320356168,1711323046988,-500.0,0.00054794,120]
[320356169,1711323046998,-500.0,0.00054794,120]
[320356170,1711323047007,-1195.46,0.00054794,120]
[320356171,1711323047017,-500.0,0.00054794,120]
[320356172,1711323047027,-500.0,0.00054794,120]
[320356174,1711323047164,-500.0,0.00054794,120]
[320356175,1711323047175,-1083.46,0.00054794,120]
[320356176,1711323047185,-500.0,0.00054794,120]
[320356177,1711323047195,-500.0,0.00054794,120]
[320356178,1711323047206,-503.92873302,0.00054794,120]
[320356179,1711323047217,-503.05264948,0.00054794,120]
[320356180,1711323047227,-504.76696991,0.00054794,120]
[320356181,1711323047236,-500.0,0.00054794,120]
[320356182,1711323047246,-500.0,0.00054794,120]
[320356183,1711323047256,-500.0,0.00054794,120]
[320356184,1711323047265,-500.0,0.00054794,120]
[320356185,1711323047275,-500.0,0.00054794,120]
[320356186,1711323047284,-500.0,0.00054794,120]
[320356187,1711323047293,-500.0,0.00054794,120]
[320356188,1711323047303,-500.0,0.00054794,120]
[320356189,1711323047312,-502.39036141,0.00054794,120]
[320356190,1711323047322,-1043.75,0.00054794,120]
[320356191,1711323047331,-500.0,0.00054794,120]
[320356192,1711323047340,-446.98736684,0.00054794,120]
[320356193,1711323047352,-500.0,0.00054794,120]
[320356194,1711323047362,-3762.1,0.00054794,120]
[320356195,1711323047371,-500.0,0.00054794,120]
[320356196,1711323047382,-500.0,0.00054794,120]
[320356197,1711323047391,-500.73,0.00054794,120]
[320356198,1711323047401,-507.61236674,0.00054794,120]
[320356199,1711323047410,-1725.69,0.00054794,2]
[320356200,1711323047420,-500.0,0.00054794,120]
[320356201,1711323047430,-6268.43,0.00054794,120]
[320356202,1711323047439,-500.0,0.00054794,120]
[320356203,1711323047449,-9960.35,0.00054794,120]
[320356204,1711323047459,-500.0,0.00054794,120]
[320356205,1711323047469,-530.27624735,0.00054794,120]
[320356206,1711323047479,-500.0,0.00054794,120]
[320356207,1711323047489,-500.0,0.00054794,120]
[320356208,1711323047499,-500.0,0.00054794,120]
[320356209,1711323047508,-1500.0,0.00054794,120]
[320356210,1711323047518,-503.52241592,0.00054794,120]
[320356211,1711323047529,-500.0,0.00054794,120]
[320356212,1711323047538,-2102.57,0.00054794,120]
[320356213,1711323047548,-500.0,0.00054794,120]
[320356214,1711323047557,-500.0,0.00054794,120]
[320356215,1711323047567,-646.55665611,0.00054794,120]
[320356216,1711323047576,-500.0,0.00054794,120]
[320356217,1711323047586,-500.0,0.00054794,120]
[320356218,1711323047598,-500.69179617,0.00054794,120]
[320356219,1711323047608,-501.27705777,0.00054794,120]
[320356220,1711323047617,-1868.55,0.00054794,120]
[320356221,1711323047627,-500.0,0.00054794,120]
[320356222,1711323047636,-500.0,0.00054794,120]
[320356223,1711323047647,-807.31,0.00054794,120]
[320356224,1711323047656,-501.10836594,0.00054794,120]
[320356225,1711323047666,-1220.15,0.00054794,120]
[320356226,1711323047675,-1455.77,0.00054794,120]
[320356227,1711323047686,-500.0,0.00054794,120]
[320356228,1711323047697,-500.0,0.00054794,120]
[320356229,1711323047706,-501.31456932,0.00054794,120]
[320356230,1711323047715,-2323.49,0.00054794,120]
[320356231,1711323047725,-1190.15,0.00054794,120]
[320356232,1711323047736,-500.0,0.00054794,120]
[320356233,1711323047745,-1549.66,0.00054794,120]
[320356234,1711323047754,-1006.42,0.00054794,120]
[320356235,1711323047763,-500.47128142,0.00054794,120]
[320356236,1711323047772,-503.00710138,0.00054794,120]
[320356237,1711323047784,-500.0,0.00054794,120]
[320356238,1711323047793,-500.0,0.00054794,120]
[320356239,1711323047803,-1105.98,0.00054794,120]
[320356240,1711323047812,-500.0,0.00054794,120]
[320356241,1711323047822,-500.0,0.00054794,120]
[320356242,1711323047831,-500.0,0.00054794,120]
[320356243,1711323047841,-500.0,0.00054794,120]
[320356244,1711323047851,-501.22209148,0.00054794,120]
[320356245,1711323047860,-500.0,0.00054794,120]
[320356246,1711323047870,-5292.18,0.00054794,120]
[320356247,1711323047880,-10984.42,0.00054794,120]
[320356248,1711323047890,-500.0,0.00054794,120]
[320356249,1711323047901,-500.0,0.00054794,120]
[320356250,1711323047912,-500.0,0.00054794,120]
[320356251,1711323047921,-500.0,0.00054794,120]
[320356252,1711323047930,-500.0,0.00054794,120]
[320356253,1711323047941,-500.0,0.00054794,120]
[320356254,1711323047952,-500.0,0.00054794,120]
[320356255,1711323047962,-501.41929343,0.00054794,120]
[320356256,1711323047971,-500.0,0.00054794,120]
[320356257,1711323047981,-500.0,0.00054794,120]
[320356258,1711323047990,-501.28242064,0.00054794,120]
[320356259,1711323047999,-500.0,0.00054794,120]
[320356260,1711323048009,-500.0,0.00054794,120]
[320356261,1711323048019,-500.0,0.00054794,120]
[320356262,1711323048030,-259.52139522,0.00054794,120]